[Event "POL-chT 2 Liga 2019"]
[Site "Poronin"]
[Date "2019.09.07"]
[Round "1.42"]
[White "Starosta, Martyna"]
[Black "Lapa, Aleksandra"]
[Result "1-0"]
[ECO "B34"]
[WhiteElo "1814"]
[BlackElo "1646"]
[Annotator "NA"]
[PlyCount "89"]
[EventDate "2019.09.07"]
[EventType "team-tourn"]
[EventCountry "POL"]
[SourceTitle "playchess.com"]
[Source "ChessBase"]
[SourceQuality "1"]
[TimeControl "40/5400+30:1800+30"]

1. e4 {[%emt 0:00:00]} c5 {[%emt 0:00:00]} 2. Nf3 {[%emt 0:00:00]} Nc6 {[%emt 0:00:00]} 3. d4 {[%emt 0:00:00]} cxd4 {[%emt 0:00:00]} 4. Nxd4 {[%emt 0:00:00]} Nf6 {[%emt 0:00:00]} 5. Nc3 {[%emt 0:00:00]} e5 {[%emt 0:00:00]} 6. Ndb5 {[%emt 0:00:04]} d6 {[%emt 0:00:08]} 7. Nd5 {[%emt 0:00:12]} Nxd5 {[%emt 0:00:25]} 8. exd5 {[%emt 0:00:13]} Nb8 {[%emt 0:00:07]} 9. a4 {[%emt 0:00:16]} Be7 {[%emt 0:01:02]} 10. Be2 {[%emt 0:00:15]} O-O {[%emt 0:00:37]} 11. O-O {[%emt 0:00:11]} f5 {[%emt 0:02:08]} 12. f4 {[%emt 0:00:56]} e4 {[%emt 0:02:41]} 13. Be3 {[%emt 0:02:15]} a6 {[%emt 0:01:36]} 14. Na3 {[%emt 0:00:28]} Bf6 {[%emt 0:03:53]} 15. Nc4 {[%emt 0:01:14]} Nd7 {[%emt 0:06:51]} 16. a5 {[%emt 0:07:35]} Qe7 {[%emt 0:07:50]} 17. Qd2 {[%emt 0:07:38]} h6 {[%emt 0:01:52]} 18. Qb4 {[%emt 0:04:37]} Qf7 {[%emt 0:29:24]} 19. Nxd6 {[%emt 0:13:52]} Be7 {[%emt 0:02:58]} 20. Nxf7 {[%emt 0:01:08]} Bxb4 {[%emt 0:00:56]} 21. Ne5 {[%emt 0:00:18]} Bd6 {[%emt 0:09:37]} 22. Nc4 {[%emt 0:05:10]} Bc5 {[%emt 0:04:09]} 23. Kf2 {[%emt 0:01:35]} Bxe3+ {[%emt 0:04:05]} 24. Kxe3 {[%emt 0:00:09]} b5 {[%emt 0:01:27]} 25. axb6 {[%emt 0:05:35]} Rb8 {[%emt 0:00:30]} 26. Ra5 {[%emt 0:02:18]} Rf6 {[%emt 0:01:40]} 27. Kd4 {[%emt 0:01:55]} Nxb6 {[%emt 0:01:58]} 28. Ne5 {[%emt 0:05:10]} Nd7 {[%emt 0:08:23]} 29. Nc6 {[%emt 0:03:41]} Ra8 {[%emt 0:03:04]} 30. Rfa1 {[%emt 0:01:37]} Bb7 {[%emt 0:01:34]} 31. Bxa6 {[%emt 0:01:59]} Bxc6 {[%emt 0:03:11]} 32. dxc6 {[%emt 0:03:03]} Rxc6 {[%emt 0:01:38]} 33. Bc4+ {[%emt 0:00:15]} Rxc4+ {[%emt 0:00:18]} 34. Kxc4 {[%emt 0:00:06]} Rc8+ {[%emt 0:00:39]} 35. Kb3 {[%emt 0:03:34]} Rb8+ {[%emt 0:00:36]} 36. Kc3 {[%emt 0:00:08]} Rc8+ {[%emt 0:01:22]} 37. Kd2 {[%emt 0:01:02]} Nb6 {[%emt 0:01:04]} 38. b3 {[%emt 0:00:34]} Rd8+ {[%emt 0:00:24]} 39. Ke2 {[%emt 0:00:21]} Kh7 {[%emt 0:00:33]} 40. Rxf5 {[%emt 0:00:00]} Nd5 {[%emt 0:00:00]} 41. Ra7 {[%emt 0:01:32]} Rd6 {[%emt 0:11:46]} 42. Rxd5 {[%emt 0:01:37]} Rxd5 {[%emt 0:00:18]} 43. Ra4 {[%emt 0:00:07]} Rc5 {[%emt 0:07:20]} 44. Rc4 {[%emt 0:00:11]} Ra5 {[%emt 0:00:23]} 45. Rxe4 {[%emt 0:00:07]} 1-0

[Event "POL-chT 2 Liga 2019"]
[Site "Poronin"]
[Date "2019.09.07"]
[Round "1.43"]
[White "Pniaczek, Marek"]
[Black "Helis, Tadeusz"]
[Result "1/2-1/2"]
[ECO "B41"]
[WhiteElo "2226"]
[BlackElo "2166"]
[Annotator "ChessBase"]
[PlyCount "178"]
[EventDate "2019.09.07"]
[EventType "team-tourn"]
[EventCountry "POL"]
[SourceTitle "playchess.com"]
[Source "ChessBase"]
[SourceQuality "1"]
[TimeControl "40/5400+30:1800+30"]

1. e4 {[%emt 0:00:00]} c5 {[%emt 0:00:00]} 2. Nf3 {[%emt 0:00:00]} e6 {[%emt 0:00:02]} 3. d4 {[%emt 0:00:00]} cxd4 {[%emt 0:00:11]} 4. Nxd4 {[%emt 0:00:00]} a6 {[%emt 0:00:07]} 5. g3 {[%emt 0:00:00]} Nc6 {[%emt 0:00:09]} 6. Bg2 {[%emt 0:00:00]} Qc7 {[%emt 0:00:34]} 7. O-O {[%emt 0:00:47]} Nf6 {[%emt 0:00:04]} 8. c4 {[%emt 0:00:26]} Nxd4 {[%emt 0:05:12]} 9. Qxd4 {[%emt 0:00:47]} Bc5 {[%emt 0:00:04]} 10. Qd3 {[%emt 0:01:00]} d6 {[%emt 0:00:04]} 11. Nc3 {[%emt 0:01:52]} Ng4 {[%emt 0:04:33]} 12. b3 {[%emt 0:01:53]} Bd7 {[%emt 0:04:46]} 13. Bb2 {[%emt 0:01:43]} O-O {[%emt 0:06:11]} 14. Rad1 {[%emt 0:07:05]} b5 {[%emt 0:10:50]} 15. Qe2 {[%emt 0:38:15]} Ne5 {[%emt 0:00:56]} 16. cxb5 {[%emt 0:02:00]} axb5 {[%emt 0:02:48]} 17. Kh1 {[%emt 0:06:22]} b4 {[%emt 0:00:44]} 18. Na4 {[%emt 0:00:29]} Bxa4 {[%emt 0:00:27]} 19. bxa4 {[%emt 0:00:05]} Rxa4 {[%emt 0:00:37]} 20. f4 {[%emt 0:00:56]} Nd7 {[%emt 0:02:08]} 21. Ba1 {[%emt 0:06:49]} e5 {[%emt 0:01:15]} 22. Bh3 {[%emt 0:02:20]} Nb6 {[%emt 0:02:49]} 23. fxe5 {[%emt 0:02:13]} dxe5 {[%emt 0:00:09]} 24. Rc1 {[%emt 0:03:00]} Ra5 {[%emt 0:02:15]} 25. Qh5 {[%emt 0:06:39]} Re8 {[%emt 0:02:20]} 26. Rf5 {[%emt 0:03:23]} g6 {[%emt 0:06:24]} 27. Qg5 {[%emt 0:03:20]} Nd7 {[%emt 0:09:53]} 28. Rff1 {[%emt 0:03:58]} Nf8 {[%emt 0:00:30]} 29. Qf6 {[%emt 0:01:14]} Qe7 {[%emt 0:00:36]} 30. Qc6 {[%emt 0:02:30]} Bd4 {[%emt 0:00:41]} 31. Qc4 {[%emt 0:02:53]} Bxa1 {[%emt 0:00:15]} 32. Rxa1 {[%emt 0:00:03]} Rea8 {[%emt 0:00:16]} 33. Rf2 {[%emt 0:02:16]} R8a7 {[%emt 0:00:51]} 34. Raf1 {[%emt 0:00:20]} Qc5 {[%emt 0:02:04]} 35. Qb3 {[%emt 0:00:37]} Ra3 {[%emt 0:00:13]} 36. Qb1 {[%emt 0:00:49]} Qc4 {[%emt 0:01:03]} 37. Rc1 {[%emt 0:01:02]} Rc3 {[%emt 0:01:48]} 38. Rcf1 {[%emt 0:00:19]} Rc7 {[%emt 0:01:18]} 39. Bg2 {[%emt 0:01:28]} Ne6 {[%emt 0:00:23]} 40. Qd1 {[%emt 0:00:00]} Nd4 {[%emt 0:00:00]} 41. Qa4 {[%emt 0:02:36]} Kg7 {[%emt 0:01:04]} 42. Qe8 {[%emt 0:01:08]} Qe6 {[%emt 0:00:34]} 43. Qb8 {[%emt 0:01:23]} Rc2 {[%emt 0:02:24]} 44. Qxb4 {[%emt 0:06:10]} Qxa2 {[%emt 0:01:32]} 45. Rxc2 {[%emt 0:01:35]} Rxc2 {[%emt 0:00:27]} 46. Qe7 {[%emt 0:00:41]} Qe6 {[%emt 0:01:34]} 47. Qg5 {[%emt 0:00:21]} h6 {[%emt 0:00:26]} 48. Qd8 {[%emt 0:00:20]} Rc8 {[%emt 0:01:52]} 49. Qa5 {[%emt 0:00:17]} h5 {[%emt 0:00:19]} 50. Qd2 {[%emt 0:04:04]} h4 {[%emt 0:00:41]} 51. gxh4 {[%emt 0:00:43]} Rh8 {[%emt 0:00:03]} 52. Qg5 {[%emt 0:01:40]} Rh5 {[%emt 0:00:05]} 53. Qd8 {[%emt 0:08:08]} Nc6 {[%emt 0:00:53]} 54. Qd5 {[%emt 0:00:50]} Nd4 {[%emt 0:01:02]} 55. Qd8 {[%emt 0:00:06]} Rh8 {[%emt 0:00:17]} 56. Qg5 {[%emt 0:00:54]} Ne2 {[%emt 0:00:54]} 57. Bf3 {[%emt 0:00:59]} Nf4 {[%emt 0:00:04]} 58. Bg4 {[%emt 0:00:35]} Qf6 {[%emt 0:00:35]} 59. Qxf6+ {[%emt 0:01:08]} Kxf6 {[%emt 0:00:03]} 60. h5 {[%emt 0:00:14]} gxh5 {[%emt 0:00:16]} 61. Bf5 {[%emt 0:00:22]} Rb8 {[%emt 0:01:59]} 62. Kg1 {[%emt 0:01:36]} Rb2 {[%emt 0:00:27]} 63. Rf2 {[%emt 0:00:08]} Rxf2 {[%emt 0:00:15]} 64. Kxf2 {[%emt 0:00:04]} Kg5 {[%emt 0:00:06]} 65. Bc8 {[%emt 0:01:10]} Ng6 {[%emt 0:00:23]} 66. Kg3 {[%emt 0:00:32]} h4+ {[%emt 0:00:03]} 67. Kf3 {[%emt 0:00:17]} Nf4 68. Bf5 {[%emt 0:00:10]} Nd3 {[%emt 0:02:26]} 69. Ke3 {[%emt 0:00:36]} Nb4 {[%emt 0:00:06]} 70. Bd7 {[%emt 0:00:27]} Nc2+ {[%emt 0:00:12]} 71. Kf3 {[%emt 0:00:14]} Nd4+ {[%emt 0:00:04]} 72. Ke3 {[%emt 0:00:07]} Kf6 {[%emt 0:00:55]} 73. Bg4 {[%emt 0:00:34]} Ne6 {[%emt 0:00:21]} 74. Kf3 {[%emt 0:02:39]} Ng5+ {[%emt 0:00:13]} 75. Ke3 {[%emt 0:00:05]} Ke7 {[%emt 0:00:08]} 76. Bh5 {[%emt 0:01:25]} Kd6 {[%emt 0:00:11]} 77. Bg4 {[%emt 0:00:11]} Kc5 {[%emt 0:00:12]} 78. Kd3 {[%emt 0:00:34]} Kb4 {[%emt 0:00:02]} 79. Bh5 {[%emt 0:00:16]} Kb3 {[%emt 0:00:17]} 80. Bd1+ {[%emt 0:00:24]} Kb4 {[%emt 0:01:23]} 81. Bh5 {[%emt 0:00:09]} f6 {[%emt 0:00:20]} 82. Bg4 {[%emt 0:00:26]} Kc5 {[%emt 0:00:18]} 83. Bh5 {[%emt 0:00:30]} Ne6 {[%emt 0:04:04]} 84. Ke3 {[%emt 0:00:19]} Nd4 {[%emt 0:01:02]} 85. Bg6 {[%emt 0:01:02]} Kb4 {[%emt 0:00:10]} 86. Bh7 {[%emt 0:01:00]} Kc3 {[%emt 0:00:11]} 87. Bg6 {[%emt 0:00:08]} Kc2 {[%emt 0:01:04]} 88. Bh5 {[%emt 0:00:06]} Kc1 {[%emt 0:00:37]} 89. Bg4 {[%emt 0:00:48]} Kc2 {[%emt 0:00:54]} 1/2-1/2

[Event "POL-chT 2 Liga 2019"]
[Site "Poronin"]
[Date "2019.09.07"]
[Round "1.45"]
[White "Smolka, Marcin"]
[Black "Walkusz, Witoslaw"]
[Result "1/2-1/2"]
[ECO "C55"]
[WhiteElo "2178"]
[BlackElo "2061"]
[Annotator "ChessBase"]
[PlyCount "38"]
[EventDate "2019.09.07"]
[EventType "team-tourn"]
[EventCountry "POL"]
[SourceTitle "playchess.com"]
[Source "ChessBase"]
[SourceQuality "1"]
[TimeControl "40/5400+30:1800+30"]

1. e4 {[%emt 0:00:00]} e5 {[%emt 0:00:00]} 2. Nf3 {[%emt 0:00:00]} Nc6 {[%emt 0:00:00]} 3. Bc4 {[%emt 0:00:00]} Nf6 {[%emt 0:00:00]} 4. d3 {[%emt 0:00:00]} h6 {[%emt 0:01:31]} 5. c3 {[%emt 0:00:39]} Be7 {[%emt 0:00:20]} 6. O-O {[%emt 0:00:21]} a6 {[%emt 0:02:10]} 7. Bb3 {[%emt 0:01:24]} d5 {[%emt 0:04:16]} 8. exd5 {[%emt 0:03:41]} Nxd5 {[%emt 0:00:06]} 9. Re1 {[%emt 0:00:02]} Qd6 {[%emt 0:00:19]} 10. d4 {[%emt 0:02:14]} exd4 {[%emt 0:28:34]} 11. Nxd4 {[%emt 0:04:01]} Nxd4 {[%emt 0:00:36]} 12. Qxd4 {[%emt 0:00:39]} Be6 {[%emt 0:00:42]} 13. Bxd5 {[%emt 0:04:27]} Qxd5 {[%emt 0:01:28]} 14. Qxd5 {[%emt 0:00:47]} Bxd5 {[%emt 0:00:04]} 15. Bf4 {[%emt 0:00:14]} Rc8 {[%emt 0:01:39]} 16. Na3 {[%emt 0:03:31]} Be6 {[%emt 0:02:29]} 17. Nc2 {[%emt 0:00:34]} c5 {[%emt 0:09:51]} 18. Ne3 {[%emt 0:01:34]} Rd8 {[%emt 0:11:39]} 19. h3 {[%emt 0:05:40]} g5 1/2-1/2

[Event "POL-chT 2 Liga 2019"]
[Site "Poronin"]
[Date "2019.09.07"]
[Round "1.46"]
[White "Kubica, Kamil"]
[Black "Wozniak, Mariola"]
[Result "1-0"]
[ECO "A81"]
[WhiteElo "2099"]
[BlackElo "2158"]
[Annotator "ChessBase"]
[PlyCount "47"]
[EventDate "2019.09.07"]
[EventType "team-tourn"]
[EventCountry "POL"]
[SourceTitle "playchess.com"]
[Source "ChessBase"]
[SourceQuality "1"]
[TimeControl "40/5400+30:1800+30"]

1. d4 {[%emt 0:00:00]} f5 {[%emt 0:00:00]} 2. g3 {[%emt 0:00:26]} Nf6 {[%emt 0:00:00]} 3. Bg2 {[%emt 0:00:38]} g6 {[%emt 0:00:02]} 4. Nh3 {[%emt 0:01:27]} Bg7 {[%emt 0:01:50]} 5. Nf4 {[%emt 0:02:47]} e6 {[%emt 0:02:58]} 6. h4 {[%emt 0:02:33]} Nc6 {[%emt 0:21:31]} 7. h5 {[%emt 0:08:47]} g5 {[%emt 0:03:27]} 8. h6 {[%emt 0:00:55]} Bf8 {[%emt 0:01:21]} 9. Nh3 {[%emt 0:06:28]} g4 {[%emt 0:09:48]} 10. Nf4 {[%emt 0:03:41]} d5 {[%emt 0:03:22]} 11. b3 {[%emt 0:07:49]} Bd7 {[%emt 0:14:54]} 12. Bb2 {[%emt 0:03:13]} Qe7 {[%emt 0:05:28]} 13. Nd2 {[%emt 0:07:16]} O-O-O {[%emt 0:01:27]} 14. c4 {[%emt 0:02:27]} Be8 {[%emt 0:06:26]} 15. Rc1 {[%emt 0:12:59]} Rg8 {[%emt 0:02:08]} 16. Qc2 {[%emt 0:05:18]} Nb4 {[%emt 0:02:52]} 17. Qb1 {[%emt 0:00:24]} dxc4 {[%emt 0:02:13]} 18. bxc4 {[%emt 0:03:36]} Qd7 {[%emt 0:07:54]} 19. d5 {[%emt 0:03:12]} Nfxd5 {[%emt 0:06:37]} 20. cxd5 {[%emt 0:00:26]} Bf7 {[%emt 0:01:01]} 21. Nc4 {[%emt 0:08:02]} Nxd5 {[%emt 0:02:11]} 22. Ne5 {[%emt 0:00:44]} Bb4+ {[%emt 0:01:12]} 23. Kf1 {[%emt 0:00:10]} Qe7 {[%emt 0:01:57]} 24. Bxd5 {[%emt 0:00:36]} 1-0

[Event "POL-chT 2 Liga 2019"]
[Site "Poronin"]
[Date "2019.09.07"]
[Round "1.48"]
[White "Dziodzio, Angelika"]
[Black "Murawko, Katarzyna"]
[Result "1-0"]
[ECO "B27"]
[WhiteElo "2117"]
[BlackElo "2062"]
[Annotator "ChessBase"]
[PlyCount "74"]
[EventDate "2019.09.07"]
[EventType "team-tourn"]
[EventCountry "POL"]
[SourceTitle "playchess.com"]
[Source "ChessBase"]
[SourceQuality "1"]
[TimeControl "40/5400+30:1800+30"]

1. e4 {[%emt 0:00:00]} c5 {[%emt 0:00:00]} 2. Nf3 {[%emt 0:00:00]} g6 {[%emt 0:00:00]} 3. d4 {[%emt 0:00:00]} Bg7 {[%emt 0:00:10]} 4. c3 {[%emt 0:00:20]} Qb6 {[%emt 0:16:04]} 5. dxc5 {[%emt 0:11:25]} Qxc5 {[%emt 0:01:36]} 6. Be3 {[%emt 0:00:12]} Qc7 {[%emt 0:01:15]} 7. Qb3 {[%emt 0:02:40]} Nh6 {[%emt 0:26:14]} 8. Na3 {[%emt 0:02:21]} Nc6 {[%emt 0:01:29]} 9. Nb5 {[%emt 0:05:09]} Qb8 {[%emt 0:02:40]} 10. Be2 {[%emt 0:02:25]} O-O {[%emt 0:05:25]} 11. h3 {[%emt 0:01:36]} d6 {[%emt 0:10:44]} 12. O-O {[%emt 0:07:15]} a6 {[%emt 0:03:03]} 13. Nbd4 {[%emt 0:00:38]} e5 {[%emt 0:00:15]} 14. Nc2 {[%emt 0:09:47]} Be6 {[%emt 0:03:38]} 15. Qa3 {[%emt 0:01:22]} f6 {[%emt 0:03:34]} 16. Bb6 {[%emt 0:02:48]} Nf7 {[%emt 0:02:18]} 17. Ne3 {[%emt 0:00:38]} f5 {[%emt 0:01:40]} 18. Nd2 {[%emt 0:01:45]} Ne7 {[%emt 0:06:02]} 19. Rad1 {[%emt 0:03:19]} Qc8 {[%emt 0:07:04]} 20. Ndc4 {[%emt 0:01:56]} Qc6 {[%emt 0:00:25]} 21. Qb4 {[%emt 0:06:12]} Nc8 {[%emt 0:01:37]} 22. exf5 {[%emt 0:08:27]} gxf5 {[%emt 0:00:29]} 23. Ba5 {[%emt 0:10:27]} f4 {[%emt 0:01:29]} 24. Ng4 {[%emt 0:02:36]} b6 {[%emt 0:03:13]} 25. Nxb6 {[%emt 0:01:43]} Rb8 {[%emt 0:00:03]} 26. Bf3 {[%emt 0:00:47]} d5 {[%emt 0:01:59]} 27. Nxd5 {[%emt 0:02:51]} Bxg4 {[%emt 0:00:25]} 28. Qxb8 {[%emt 0:01:18]} Bxf3 {[%emt 0:00:01]} 29. gxf3 {[%emt 0:00:02]} Ng5 {[%emt 0:00:50]} 30. Qxc8 {[%emt 0:01:35]} Nxf3+ {[%emt 0:00:39]} 31. Kh1 {[%emt 0:00:01]} Rxc8 {[%emt 0:00:37]} 32. Ne7+ {[%emt 0:00:08]} Kf7 33. Nxc6 {[%emt 0:00:06]} Rxc6 {[%emt 0:00:23]} 34. Rd7+ {[%emt 0:00:36]} Kg8 {[%emt 0:01:07]} 35. Rfd1 {[%emt 0:02:06]} Rh6 {[%emt 0:00:26]} 36. Kg2 {[%emt 0:00:40]} e4 {[%emt 0:00:35]} 37. Re7 {[%emt 0:01:33]} Rg6+ {c4} 1-0

[Event "POL-chT 2 Liga 2019"]
[Site "Poronin"]
[Date "2019.09.07"]
[Round "1.49"]
[White "Kukula, Pawel"]
[Black "Wandzik, Wojciech"]
[Result "1/2-1/2"]
[ECO "E27"]
[WhiteElo "2195"]
[BlackElo "2409"]
[Annotator "ChessBase"]
[PlyCount "46"]
[EventDate "2019.09.07"]
[EventType "team-tourn"]
[EventCountry "POL"]
[SourceTitle "playchess.com"]
[Source "ChessBase"]
[SourceQuality "1"]
[TimeControl "40/5400+30:1800+30"]

1. d4 {[%emt 0:00:00]} Nf6 {[%emt 0:00:00]} 2. c4 {[%emt 0:00:00]} e6 {[%emt 0:00:00]} 3. Nc3 {[%emt 0:00:22]} Bb4 {[%emt 0:00:53]} 4. a3 {[%emt 0:00:33]} Bxc3+ {[%emt 0:00:55]} 5. bxc3 {[%emt 0:00:11]} O-O {[%emt 0:00:49]} 6. f3 {[%emt 0:02:33]} d5 {[%emt 0:10:17]} 7. e3 {[%emt 0:02:06]} c5 {[%emt 0:03:05]} 8. cxd5 {[%emt 0:03:17]} exd5 {[%emt 0:00:08]} 9. Bd3 {[%emt 0:00:08]} Re8 {[%emt 0:06:59]} 10. Ne2 {[%emt 0:00:49]} Nc6 {[%emt 0:07:26]} 11. O-O {[%emt 0:01:00]} Qd6 {[%emt 0:02:09]} 12. Ng3 {[%emt 0:11:51]} Bd7 {[%emt 0:03:30]} 13. Nf5 {[%emt 0:12:37]} Bxf5 {[%emt 0:01:51]} 14. Bxf5 {[%emt 0:00:07]} Na5 {[%emt 0:01:24]} 15. Re1 {[%emt 0:09:44]} g6 {[%emt 0:04:11]} 16. Bd3 {[%emt 0:01:09]} Rac8 {[%emt 0:00:18]} 17. Qa4 {[%emt 0:01:45]} b6 {[%emt 0:05:13]} 18. Bd2 {[%emt 0:05:13]} Re7 {[%emt 0:03:07]} 19. Rac1 {[%emt 0:03:02]} Qc6 {[%emt 0:14:51]} 20. Bb5 {[%emt 0:08:34]} Qb7 {[%emt 0:00:18]} 21. Bd3 {[%emt 0:02:11]} Qc6 {[%emt 0:05:13]} 22. Bb5 {[%emt 0:01:30]} Qb7 {[%emt 0:00:11]} 23. Bd3 {[%emt 0:00:06]} Qc6 {[%emt 0:12:30]} 1/2-1/2

[Event "POL-chT 2 Liga 2019"]
[Site "Poronin"]
[Date "2019.09.07"]
[Round "1.50"]
[White "Lizak, Jakub"]
[Black "Karpus, Michal"]
[Result "0-1"]
[ECO "C44"]
[WhiteElo "2236"]
[BlackElo "2290"]
[Annotator "ChessBase"]
[PlyCount "78"]
[EventDate "2019.09.07"]
[EventType "team-tourn"]
[EventCountry "POL"]
[SourceTitle "playchess.com"]
[Source "ChessBase"]
[SourceQuality "1"]
[TimeControl "40/5400+30:1800+30"]

1. e4 {[%emt 0:02:01]} e5 {[%emt 0:00:00]} 2. Nf3 {[%emt 0:00:03]} Nc6 {[%emt 0:00:01]} 3. g3 {[%emt 0:00:04]} Nf6 {[%emt 0:02:38]} 4. d3 {[%emt 0:00:03]} d5 {[%emt 0:07:08]} 5. exd5 {[%emt 0:00:04]} Nxd5 {[%emt 0:01:57]} 6. Bg2 {[%emt 0:00:07]} Bg4 {[%emt 0:03:02]} 7. O-O {[%emt 0:00:31]} Qd7 {[%emt 0:01:53]} 8. Qe1 {[%emt 0:06:38]} f6 {[%emt 0:05:44]} 9. Be3 {[%emt 0:07:58]} O-O-O {[%emt 0:04:21]} 10. Nc3 {[%emt 0:04:53]} Nxe3 {[%emt 0:03:00]} 11. fxe3 {[%emt 0:00:19]} h5 {[%emt 0:02:22]} 12. Qf2 {[%emt 0:01:44]} Bc5 {[%emt 0:04:08]} 13. a3 {[%emt 0:02:17]} g5 {[%emt 0:09:17]} 14. Nd2 {[%emt 0:03:03]} h4 {[%emt 0:04:34]} 15. Nce4 {[%emt 0:06:54]} Be7 {[%emt 0:01:41]} 16. Nb3 {[%emt 0:04:13]} hxg3 {[%emt 0:08:17]} 17. Qxg3 {[%emt 0:00:12]} f5 {[%emt 0:01:49]} 18. Nec5 {[%emt 0:02:53]} Bxc5 {[%emt 0:02:00]} 19. Nxc5 {[%emt 0:00:06]} Qd6 {[%emt 0:04:49]} 20. b4 {[%emt 0:01:02]} Rh4 {[%emt 0:02:11]} 21. Rxf5 {[%emt 0:05:14]} Bxf5 {[%emt 0:06:36]} 22. Qxg5 {[%emt 0:00:08]} Qh6 {[%emt 0:00:48]} 23. Qxf5+ {[%emt 0:00:09]} Kb8 {[%emt 0:01:08]} 24. Qf3 {[%emt 0:03:11]} e4 {[%emt 0:01:23]} 25. Qg3 {[%emt 0:01:53]} Rh8 {[%emt 0:07:01]} 26. Rf1 {[%emt 0:05:00]} Rxh2 {[%emt 0:01:18]} 27. Nxe4 {[%emt 0:00:39]} Rh1+ {[%emt 0:05:33]} 28. Kf2 {[%emt 0:01:01]} Rf8+ {[%emt 0:00:27]} 29. Ke2 {[%emt 0:03:24]} Rhxf1 {[%emt 0:00:25]} 30. Bxf1 {[%emt 0:00:03]} a5 {[%emt 0:00:19]} 31. Nc5 {[%emt 0:03:31]} Qh5+ {[%emt 0:01:45]} 32. Ke1 {[%emt 0:00:16]} Rf3 {[%emt 0:01:06]} 33. Qg1 {[%emt 0:04:20]} axb4 {[%emt 0:01:02]} 34. Be2 {[%emt 0:09:31]} Qh4+ {[%emt 0:00:35]} 35. Kd2 {[%emt 0:00:17]} Rg3 {[%emt 0:01:26]} 36. Qf2 {[%emt 0:02:16]} bxa3 {[%emt 0:01:49]} 37. Qf8+ {[%emt 0:03:31]} Qd8 {[%emt 0:00:40]} 38. Qf4 {[%emt 0:02:16]} Qd6 {[%emt 0:02:20]} 39. Qc4 {[%emt 0:00:35]} a2 {[%emt 0:00:31]} 0-1

[Event "POL-chT 2 Liga 2019"]
[Site "Poronin"]
[Date "2019.09.07"]
[Round "1.51"]
[White "Krainski, Aleksander"]
[Black "Duda, Lukasz"]
[Result "1-0"]
[ECO "D05"]
[WhiteElo "2104"]
[BlackElo "2209"]
[Annotator "ChessBase"]
[PlyCount "109"]
[EventDate "2019.09.07"]
[EventType "team-tourn"]
[EventCountry "POL"]
[SourceTitle "playchess.com"]
[Source "ChessBase"]
[SourceQuality "1"]
[TimeControl "40/5400+30:1800+30"]

1. d4 {[%emt 0:00:00]} d5 {[%emt 0:00:00]} 2. Nf3 {[%emt 0:00:00]} Nf6 {[%emt 0:00:02]} 3. e3 {[%emt 0:00:00]} e6 {[%emt 0:00:39]} 4. Bd3 {[%emt 0:00:04]} c5 {[%emt 0:03:13]} 5. b3 {[%emt 0:00:18]} Nbd7 {[%emt 0:06:32]} 6. Bb2 {[%emt 0:00:11]} b6 {[%emt 0:01:24]} 7. O-O {[%emt 0:00:18]} Bb7 {[%emt 0:00:49]} 8. Nbd2 {[%emt 0:03:03]} Be7 {[%emt 0:01:02]} 9. Ne5 {[%emt 0:01:36]} O-O {[%emt 0:09:41]} 10. f4 {[%emt 0:01:54]} Ne4 {[%emt 0:05:39]} 11. Ndf3 {[%emt 0:06:37]} f6 {[%emt 0:05:48]} 12. Nxd7 Qxd7 {[%emt 0:00:06]} 13. c4 {[%emt 0:04:39]} Rfd8 {[%emt 0:04:20]} 14. Qe2 {[%emt 0:02:33]} Rac8 {[%emt 0:03:46]} 15. Rfd1 {[%emt 0:07:40]} Qe8 {[%emt 0:04:40]} 16. Rac1 {[%emt 0:06:29]} Qh5 {[%emt 0:06:50]} 17. cxd5 {[%emt 0:08:18]} exd5 {[%emt 0:02:21]} 18. dxc5 {[%emt 0:00:24]} Bxc5 {[%emt 0:09:32]} 19. Nd4 {[%emt 0:05:26]} Qxe2 {[%emt 0:03:00]} 20. Bxe2 {[%emt 0:02:04]} Bxd4 {[%emt 0:11:53]} 21. Bxd4 {[%emt 0:01:46]} Rxc1 {[%emt 0:02:17]} 22. Rxc1 {[%emt 0:00:06]} Rc8 {[%emt 0:00:06]} 23. Rxc8+ {[%emt 0:03:40]} Bxc8 {[%emt 0:00:06]} 24. Bb5 {[%emt 0:01:05]} Kf7 {[%emt 0:03:45]} 25. Kf1 {[%emt 0:03:55]} Ke6 {[%emt 0:05:04]} 26. Ke1 {[%emt 0:00:26]} Nd6 {[%emt 0:01:27]} 27. Be2 {[%emt 0:05:18]} Nf5 {[%emt 0:04:16]} 28. Bg4 {[%emt 0:05:06]} Ke7 {[%emt 0:03:53]} 29. Bb2 {[%emt 0:05:43]} Be6 {[%emt 0:01:37]} 30. Kf2 {[%emt 0:05:23]} Nd6 {[%emt 0:00:29]} 31. Bf3 {[%emt 0:01:15]} Ne4+ {[%emt 0:00:05]} 32. Ke2 {[%emt 0:00:06]} Kd6 {[%emt 0:00:57]} 33. g4 {[%emt 0:05:12]} a5 {[%emt 0:00:18]} 34. Bd4 {[%emt 0:03:10]} Kc6 {[%emt 0:00:28]} 35. h4 {[%emt 0:01:24]} h6 {[%emt 0:00:43]} 36. Ke1 {[%emt 0:04:19]} Kc7 {[%emt 0:00:24]} 37. Bd1 {[%emt 0:04:23]} Kc6 {[%emt 0:00:19]} 38. g5 {[%emt 0:01:45]} hxg5 {[%emt 0:00:20]} 39. fxg5 {[%emt 0:00:06]} fxg5 {[%emt 0:00:55]} 40. h5 {[%emt 0:00:00]} g4 {[%emt 0:00:00]} 41. Bxg7 {[%emt 0:00:48]} g3 {[%emt 0:19:35]} 42. Kf1 {[%emt 0:02:49]} b5 {[%emt 0:01:59]} 43. Kg2 {[%emt 0:04:07]} Kd6 {[%emt 0:06:29]} 44. Be2 {[%emt 0:16:02]} b4 {[%emt 0:01:51]} 45. Bd3 {[%emt 0:02:17]} Ke7 {[%emt 0:01:17]} 46. Bd4 {[%emt 0:00:37]} Kf7 {[%emt 0:02:00]} 47. Bb6 {[%emt 0:01:40]} Kg7 {[%emt 0:00:29]} 48. Bxa5 {[%emt 0:01:45]} Nc3 {[%emt 0:00:34]} 49. Bxb4 {[%emt 0:01:08]} Nxa2 {[%emt 0:00:07]} 50. Bd2 {[%emt 0:01:50]} Kh6 {[%emt 0:01:19]} 51. Bg6 {[%emt 0:01:29]} Kg7 {[%emt 0:00:30]} 52. Bb1 {[%emt 0:00:27]} d4 {[%emt 0:00:19]} 53. exd4 {[%emt 0:00:06]} Bxb3 {[%emt 0:00:06]} 54. h6+ {[%emt 0:00:23]} Kh8 {[%emt 0:00:29]} 55. Bf4 {[%emt 0:00:16]} 1-0